bitfinex-derivatives/quotes_BTCF0:USTF0_20241110
["timestamp","ask_amount","ask_price","bid_price","bid_amount"]
[1731268490366,0.3608,79861.0,79844.0,0.02585526]
[1731268490367,0.062562,79852.0,79844.0,0.02585526]
[1731268490569,0.1016,79851.0,79837.0,0.3608]
[1731268490757,0.3608,79845.0,79837.0,0.3608]
[1731268492168,0.1016,79851.0,79837.0,0.3608]
[1731268492366,0.062565,79849.0,79837.0,0.3608]
[1731268492562,0.062565,79849.0,79834.0,0.44816884]
[1731268492759,0.3608,79843.0,79834.0,0.44680884]
[1731268493273,0.0945,79848.0,79834.0,0.44680884]
[1731268493773,0.0972,79847.0,79834.0,0.44680884]
[1731268494476,0.0972,79847.0,79836.0,0.24333623]
[1731268494774,0.458,79847.0,79836.0,0.24333623]
[1731268495170,0.458,79847.0,79834.0,0.02728884]
[1731268495480,0.458,79847.0,79834.0,0.08850484]
[1731268495665,0.0972,79847.0,79835.0,0.062575]
[1731268496571,0.0972,79847.0,79840.0,0.3608]
[1731268496965,0.3608,79854.0,79841.0,0.18902955]
[1731268497167,0.3608,79854.0,79848.0,0.062565]
[1731268498277,0.3608,79854.0,79836.0,0.21972]
[1731268498278,0.18077308,79851.0,79836.0,0.21972]
[1731268498467,0.3608,79847.0,79836.0,0.21972]
[1731268498667,0.1963,79846.0,79836.0,0.21972]
[1731268499664,0.24333008,79859.0,79836.0,0.21972]
[1731268499665,0.062557,79859.0,79837.0,0.18070295]
[1731268499865,0.0981,79861.0,79840.0,0.3608]
[1731268500067,0.3608,79853.0,79840.0,0.3608]
[1731268500271,0.3608,79853.0,79844.0,0.062568]
[1731268500473,0.3608,79853.0,79840.0,0.3608]
[1731268500771,0.3608,79846.0,79836.0,0.21972]
[1731268501575,0.00064,79853.0,79843.0,0.062569]
[1731268501773,0.3608,79855.0,79836.0,0.21972]
[1731268501774,0.3608,79855.0,79845.0,0.18070295]
[1731268501969,0.3608,79855.0,79853.0,0.24326395]
[1731268502167,0.3608,79855.0,79853.0,0.062561]
[1731268502368,0.0981,79861.0,79856.0,0.062558]
[1731268502972,0.3608,79870.0,79858.0,0.062557]
[1731268503172,0.3608,79870.0,79860.0,0.18070295]
[1731268503576,0.3608,79870.0,79863.0,0.062553]
[1731268503776,0.202,79876.0,79869.0,0.3608]
[1731268503979,0.1031,79876.0,79871.0,0.3608]
[1731268504181,0.3608,79883.0,79871.0,0.3608]
[1731268505171,0.3608,79883.0,79871.0,0.423346]
[1731268505372,0.3608,79883.0,79871.0,0.3608]
[1731268505971,0.3608,79883.0,79872.0,0.21152]
[1731268506167,0.3608,79883.0,79875.0,0.062544]
[1731268506876,0.202,79887.0,79877.0,0.062543]
[1731268507179,0.00182,79890.0,79877.0,0.43091698]
[1731268507384,0.00182,79890.0,79880.0,0.06254]
[1731268507680,0.00182,79890.0,79877.0,0.36837398]
[1731268507681,0.00182,79890.0,79889.0,0.3608]
[1731268508280,0.00182,79890.0,79886.0,0.18070295]
[1731268509386,0.00182,79890.0,79888.0,0.3608]
[1731268511175,0.00182,79890.0,79889.0,0.21144]
[1731268512181,0.00182,79890.0,79889.0,0.39850955]
[1731268512389,0.197,79907.0,79897.0,0.062526]
[1731268512682,0.197,79907.0,79899.0,0.54150295]
[1731268514683,0.197,79907.0,79899.0,0.3608]
[1731268516481,0.197,79907.0,79899.0,0.20216]
[1731268517188,0.197,79907.0,79899.0,0.38286295]
[1731268518086,0.197,79907.0,79899.0,0.20216]
[1731268518385,0.197,79907.0,79899.0,0.56296]
[1731268518590,0.197,79907.0,79899.0,0.20216]
[1731268518780,0.197,79907.0,79891.0,0.18070295]
[1731268518980,0.3608,79906.0,79892.0,0.20216]
[1731268519176,0.062523,79902.0,79891.0,0.02566079]
[1731268519377,0.3608,79906.0,79890.0,0.20216]
[1731268519378,0.3608,79906.0,79890.0,0.264692]
[1731268519984,0.42332,79906.0,79890.0,0.264692]
[1731268520185,0.00068,79906.0,79896.0,0.18070295]
[1731268520489,0.197,79907.0,79896.0,0.24322995]
[1731268520682,0.36148,79913.0,79896.0,0.18070295]
[1731268520683,0.36144,79913.0,79896.0,0.18070295]
[1731268520991,0.36144,79913.0,79900.0,0.062524]
[1731268521188,0.36144,79913.0,79895.0,0.3608]
[1731268521189,0.3608,79913.0,79910.0,0.18070295]
[1731268521388,0.062511,79917.0,79912.0,0.3608]
[1731268521888,0.02572418,79921.0,79902.0,0.3608]
[1731268521889,0.3608,79919.0,79902.0,0.54150295]
[1731268522090,0.062517,79911.0,79902.0,0.3608]
[1731268522489,0.062517,79910.0,79902.0,0.3608]
[1731268522679,0.3608,79919.0,79902.0,0.3608]
[1731268522882,0.062519,79908.0,79902.0,0.3608]
[1731268523188,0.3608,79919.0,79908.0,0.062518]
[1731268523484,0.3608,79919.0,79913.0,0.18070295]
[1731268524080,0.3608,79919.0,79909.0,0.062517]
[1731268524081,0.1989,79925.0,79917.0,0.062511]
[1731268524282,0.03704462,79924.0,79922.0,0.24320995]
[1731268524489,0.03704462,79924.0,79916.0,0.423312]
[1731268524688,0.03704462,79924.0,79917.0,0.062511]
[1731268525192,0.03704462,79924.0,79918.0,0.26463]
[1731268525888,0.1989,79925.0,79918.0,0.06251]
[1731268526089,0.1989,79925.0,79916.0,0.56292]
[1731268526889,0.1989,79925.0,79916.0,0.625432]
[1731268527784,0.261405,79925.0,79916.0,0.625432]
[1731268527986,0.3608,79917.0,79916.0,0.264632]
[1731268528292,0.3608,79917.0,79914.0,0.31357816]
[1731268529493,0.3608,79917.0,79911.0,0.062516]
[1731268530285,0.3608,79917.0,79908.0,0.02985365]
[1731268530495,0.062514,79914.0,79905.0,0.25584]
[1731268530709,0.062514,79914.0,79905.0,0.06252]
[1731268530893,0.3608,79908.0,79899.0,0.0058]
[1731268531093,0.3608,79908.0,79896.0,0.12025816]
[1731268531094,0.06252,79906.0,79896.0,0.12025816]
[1731268531291,0.3608,79908.0,79896.0,0.12025816]
[1731268531493,0.062524,79901.0,79890.0,0.0058]
[1731268531696,0.2102,79900.0,79890.0,0.12025816]
[1731268531899,0.2102,79900.0,79890.0,0.18279016]
[1731268531900,0.272725,79900.0,79890.0,0.18279016]
[1731268532398,0.3608,79895.0,79890.0,0.12025816]
[1731268532592,0.3608,79895.0,79884.0,0.19332]
[1731268532593,0.423329,79895.0,79884.0,0.12025816]
[1731268532791,0.1047,79894.0,79890.0,0.12025816]
[1731268532991,0.00072,79895.0,79890.0,0.12025816]
[1731268533202,0.1081,79900.0,79893.0,0.062529]
[1731268533393,0.1081,79900.0,79899.0,0.12025816]
[1731268533894,0.1081,79900.0,79891.0,0.19476]
[1731268533895,0.14242735,79900.0,79891.0,0.19476]
[1731268534094,0.07341333,79899.0,79895.0,0.12025816]
[1731268534296,0.1081,79900.0,79895.0,0.12025816]
[1731268534297,0.03432735,79898.0,79895.0,0.12025816]
[1731268534500,0.03432735,79897.0,79895.0,0.12025816]
[1731268534801,0.03432735,79896.0,79895.0,0.12025816]
[1731268535389,0.03432735,79896.0,79891.0,0.3608]
[1731268535592,0.06253,79894.0,79891.0,0.3608]
[1731268535793,0.062533,79890.0,79883.0,0.19332]
[1731268536003,0.3608,79884.0,79882.0,9.891e-05]
[1731268536301,0.062539,79882.0,79870.0,0.0058]
[1731268536499,0.3608,79872.0,79866.0,0.03451512]
[1731268536798,0.3608,79872.0,79863.0,0.255873]
[1731268536799,0.07162111,79871.0,79863.0,0.255873]
[1731268537000,0.3608,79872.0,79863.0,0.255873]
[1731268537001,0.07162111,79870.0,79863.0,0.19332]
[1731268537301,0.03321469,79869.0,79866.0,0.062551]
[1731268537495,0.03321469,79868.0,79866.0,0.062551]
[1731268537695,0.06255,79867.0,79862.0,0.02503624]
[1731268538494,0.06255,79867.0,79861.0,0.3608]
[1731268539396,0.1048,79866.0,79861.0,0.3608]
[1731268539612,0.1048,79866.0,79852.0,0.0058]
[1731268539613,0.39297708,79865.0,79852.0,0.0058]
[1731268539804,0.3608,79858.0,79848.0,0.0058]
[1731268539995,0.76840035,79858.0,79848.0,0.0058]
[1731268540196,0.39272035,79858.0,79848.0,0.0058]
[1731268540500,0.3608,79858.0,79848.0,0.0058]
[1731268540700,0.3608,79863.0,79848.0,0.20768]
[1731268540906,0.1048,79866.0,79850.0,0.54143466]
[1731268541101,0.1048,79866.0,79850.0,0.57109772]
[1731268542406,0.1048,79866.0,79850.0,0.54143466]
[1731268542603,0.3608,79865.0,79851.0,0.00106]
[1731268542805,0.062558,79857.0,79848.0,0.0058]
[1731268543005,0.062558,79857.0,79839.0,0.0058]
[1731268543006,0.3608,79849.0,79839.0,0.0058]
[1731268543304,0.3608,79849.0,79836.0,0.20192]
[1731268543802,0.3608,79849.0,79838.0,0.20192]
[1731268544194,0.06256,79855.0,79839.0,0.18816995]
[1731268544802,0.3608,79857.0,79838.0,0.20192]
[1731268545003,0.062568,79846.0,79835.0,0.20192]
[1731268545208,0.06257,79842.0,79834.0,0.3608]
[1731268545405,0.00012843,79841.0,79834.0,0.3608]
[1731268545896,0.062575,79835.0,79832.0,0.00016101]
[1731268546299,0.799177,79834.0,79832.0,0.00016101]
[1731268546499,0.3608,79834.0,79832.0,0.00016101]
[1731268546904,0.00012843,79841.0,79832.0,0.00016101]
[1731268547402,0.00012843,79841.0,79832.0,0.26465901]
[1731268548002,0.00012843,79841.0,79832.0,0.20208101]
[1731268549008,0.00012843,79841.0,79832.0,0.00016101]
[1731268550608,0.00012843,79841.0,79832.0,0.06273801]
[1731268550814,0.00012843,79841.0,79832.0,0.00016101]
[1731268551002,0.062572,79839.0,79832.0,0.00016101]
[1731268552412,0.062574,79838.0,79832.0,0.00016101]
[1731268552608,0.00012843,79841.0,79832.0,0.00016101]
[1731268553012,0.062576,79835.0,79832.0,0.00016101]
[1731268554300,0.423376,79835.0,79832.0,0.00016101]
[1731268559017,0.423376,79835.0,79827.0,0.062581]
[1731268559018,0.062584,79825.0,79823.0,0.0058]
[1731268559206,0.062584,79825.0,79822.0,0.0058]
[1731268559207,0.3608,79824.0,79812.0,0.02952419]
[1731268560015,0.062578,79832.0,79814.0,0.18896979]
[1731268560216,0.36144,79835.0,79822.0,0.3608]
[1731268560516,0.10004,79844.0,79834.0,0.062576]
[1731268560718,0.0994,79844.0,79836.0,0.062575]
[1731268561517,0.18063466,79870.0,79839.0,0.3608]
[1731268561719,0.42523261,79864.0,79847.0,0.062566]
[1731268562013,0.18063466,79854.0,79848.0,0.3608]
[1731268562314,0.062574,79837.0,79836.0,0.0058]
[1731268562515,0.062574,79837.0,79821.0,0.0058]
[1731268562516,0.3608,79837.0,79821.0,0.0058]
[1731268562720,0.18063466,79821.0,79817.0,0.3608]
[1731268562919,0.062588,79819.0,79817.0,0.3608]
[1731268563211,0.062596,79810.0,79804.0,0.00592252]
[1731268563413,0.18063466,79807.0,79804.0,0.00012252]
[1731268563807,0.062597,79808.0,79804.0,0.00012252]
[1731268564008,0.062598,79807.0,79804.0,0.00012252]
[1731268564220,0.062599,79806.0,79804.0,0.00012252]
[1731268564416,0.062606,79796.0,79790.0,0.0058]
[1731268564608,0.062606,79796.0,79786.0,0.3608]
[1731268564609,0.91739466,79795.0,79786.0,0.3608]
[1731268564906,0.3608,79795.0,79788.0,0.062612]
[1731268565107,0.73676,79795.0,79780.0,0.068418]
[1731268565417,0.3608,79787.0,79777.0,0.3608]
[1731268565615,0.3608,79787.0,79778.0,0.062619]
[1731268566517,0.3608,79787.0,79777.0,0.3608]
[1731268566714,9.43e-05,79794.0,79790.0,0.062611]
[1731268566922,9.43e-05,79794.0,79784.0,0.256535]
[1731268567215,9.43e-05,79794.0,79784.0,0.19392]
[1731268567414,9.43e-05,79794.0,79777.0,0.19392]
[1731268567415,0.3608,79789.0,79777.0,0.19392]
[1731268567822,0.3608,79789.0,79778.0,0.062619]
[1731268568012,0.3608,79789.0,79777.0,0.19392]
[1731268568415,0.3608,79789.0,79782.0,0.062616]
[1731268568616,9.43e-05,79794.0,79779.0,0.3608]
[1731268568814,0.062612,79788.0,79779.0,0.3608]
[1731268569913,0.06261,79791.0,79779.0,0.3608]
[1731268570217,0.062611,79790.0,79779.0,0.3608]
[1731268570418,0.18063466,79790.0,79779.0,0.3608]
[1731268570620,0.18063466,79790.0,79770.0,0.3608]
[1731268570621,0.3608,79784.0,79770.0,0.3608]
[1731268570821,0.3608,79784.0,79762.0,0.3608]
[1731268570822,0.062625,79772.0,79762.0,0.3666]
[1731268571022,0.3608,79774.0,79762.0,0.3608]
[1731268571522,0.3608,79774.0,79763.0,0.062631]
[1731268571717,0.3608,79774.0,79765.0,0.06263]
[1731268571909,0.2117,79783.0,79762.0,0.3608]
[1731268571910,0.1057,79783.0,79773.0,0.062623]
[1731268572326,0.1057,79783.0,79770.0,0.3608]
[1731268572921,0.1057,79783.0,79771.0,0.062625]
[1731268573621,0.1057,79783.0,79770.0,0.3608]
[1731268573821,0.1028,79789.0,79778.0,0.06262]
[1731268574117,0.1028,79789.0,79770.0,0.3608]
[1731268574619,0.1028,79789.0,79773.0,0.062624]
[1731268575012,0.1028,79789.0,79770.0,0.3608]
[1731268575208,0.165412,79789.0,79770.0,0.3608]
[1731268576712,0.1028,79789.0,79770.0,0.3608]
[1731268576913,0.062621,79777.0,79770.0,0.3608]
[1731268577113,0.18063466,79779.0,79770.0,0.3608]
[1731268577315,0.163422,79776.0,79770.0,0.3608]
[1731268577532,0.1008,79776.0,79770.0,0.3608]
[1731268577709,0.1008,79776.0,79769.0,0.00010575]
[1731268577710,0.062626,79771.0,79769.0,0.00010575]
[1731268578418,0.55671466,79770.0,79749.0,0.194]
[1731268578621,0.06263,79766.0,79752.0,0.06264]
[1731268579725,0.06263,79766.0,79749.0,0.194]
[1731268579726,0.062631,79765.0,79749.0,0.194]
[1731268580024,0.3608,79767.0,79753.0,0.3608]
[1731268580226,0.3608,79767.0,79758.0,0.062635]
[1731268580430,0.062631,79765.0,79753.0,0.3608]
[1731268580719,0.3608,79767.0,79753.0,0.3608]
[1731268580720,0.3608,79759.0,79753.0,0.3608]
[1731268581327,0.3608,79759.0,79747.0,0.3608]
[1731268582112,0.3608,79759.0,79750.0,0.062642]
[1731268582317,0.3608,79759.0,79747.0,0.3608]
[1731268583831,0.3608,79759.0,79747.0,0.423444]
[1731268584324,0.3608,79759.0,79747.0,0.3608]
[1731268584525,0.3608,79759.0,79751.0,0.062641]
[1731268584924,0.3608,79759.0,79747.0,0.3608]
[1731268585125,0.062636,79758.0,79747.0,0.3608]
[1731268585324,0.062637,79757.0,79747.0,0.3608]
[1731268585527,0.062637,79757.0,79745.0,0.062646]
[1731268585723,0.3608,79759.0,79744.0,0.22347014]
[1731268585920,0.062639,79754.0,79744.0,0.22347014]
[1731268586321,0.00015497,79753.0,79744.0,0.00016077]
[1731268586517,0.00015497,79753.0,79745.0,0.062646]
[1731268586719,0.00015497,79753.0,79744.0,0.00016077]
[1731268586928,0.062644,79748.0,79744.0,0.00016077]
[1731268587324,0.062645,79747.0,79744.0,0.00016077]
[1731268587526,0.3608,79745.0,79744.0,0.00016077]
[1731268589622,0.423446,79745.0,79744.0,0.00016077]
[1731268590127,0.3608,79745.0,79744.0,0.00016077]
[1731268590334,0.423446,79745.0,79744.0,0.00016077]
[1731268591231,0.062655,79734.0,79728.0,0.3608]
[1731268591630,0.423455,79734.0,79728.0,0.3608]
[1731268591824,0.3608,79734.0,79728.0,0.3608]
[1731268592329,0.3608,79734.0,79726.0,0.06454202]
[1731268592835,0.12087226,79729.0,79726.0,0.00188102]
[1731268593037,0.1099,79733.0,79726.0,0.00188102]
[1731268593533,0.12087226,79730.0,79726.0,0.03168786]
[1731268594235,0.1099,79733.0,79726.0,0.03168786]
[1731268596633,0.12087226,79736.0,79726.0,0.03168786]
[1731268597137,0.18351926,79744.0,79726.0,0.03168786]
[1731268597323,0.12087226,79744.0,79726.0,0.03168786]
[1731268597525,0.062652,79738.0,79726.0,0.03168786]
[1731268597730,0.12087226,79737.0,79726.0,0.03168786]
[1731268598826,0.062654,79736.0,79726.0,0.03168786]
[1731268599231,0.12087226,79729.0,79726.0,0.03168786]
[1731268599425,0.06266,79728.0,79726.0,0.00188102]
[1731268599629,0.3608,79727.0,79716.0,0.02985982]
[1731268599831,0.3608,79727.0,79713.0,0.00014427]
[1731268599832,0.06267,79714.0,79713.0,0.00014427]
[1731268600843,0.06267,79714.0,79700.0,0.1]
[1731268600844,0.062681,79701.0,79700.0,0.1]
[1731268601028,0.54435326,79701.0,79700.0,0.1]
[1731268601228,0.423481,79701.0,79700.0,0.1]
[1731268601429,0.42487873,79701.0,79700.0,0.1]
[1731268601733,0.36219773,79701.0,79700.0,0.1]
[1731268602336,0.00139773,79701.0,79700.0,0.1]
[1731268604937,0.36219773,79701.0,79700.0,0.1]
[1731268606432,0.42487873,79701.0,79700.0,0.1]
[1731268607543,0.062685,79696.0,79685.0,0.03511476]
[1731268607736,0.3608,79694.0,79682.0,0.19024]
[1731268608039,0.36283773,79701.0,79692.0,0.062687]
[1731268608235,0.36219773,79701.0,79692.0,0.062687]
[1731268608437,0.062688,79692.0,79691.0,0.3608]
[1731268608744,0.0627,79677.0,79676.0,0.0058]
[1731268608933,0.0627,79677.0,79675.0,0.02945218]
[1731268608934,0.4235,79677.0,79675.0,0.02945218]
[1731268609245,0.1005,79676.0,79675.0,0.02945218]
[1731268609543,0.062704,79671.0,79662.0,0.3608]
[1731268609937,0.3608,79670.0,79662.0,0.3608]
[1731268610247,0.3608,79670.0,79655.0,0.0058]
[1731268610248,0.12087226,79668.0,79655.0,0.0058]
[1731268610538,0.00139773,79662.0,79655.0,0.12087226]
[1731268610737,0.00139773,79662.0,79652.0,0.424879]
[1731268611044,0.00139773,79662.0,79652.0,0.423519]
[1731268611637,0.00139773,79657.0,79652.0,0.423519]
[1731268612138,0.00139773,79657.0,79656.0,0.062716]
[1731268612641,0.00014711,79669.0,79664.0,0.06271]
[1731268612833,0.00014711,79669.0,79664.0,0.42351]
[1731268613234,0.00014711,79669.0,79664.0,0.3608]
[1731268613532,0.00014711,79669.0,79662.0,0.3608]
[1731268614645,0.12101937,79669.0,79662.0,0.3608]
[1731268615346,0.12101937,79669.0,79654.0,0.3608]
[1731268615547,0.12101937,79669.0,79646.0,0.0058]
[1731268615548,0.062723,79648.0,79646.0,0.0058]
[1731268615735,0.18359626,79646.0,79645.0,0.00010141]
[1731268616841,0.062724,79646.0,79645.0,0.00010141]
[1731268618346,0.3608,79647.0,79645.0,0.00010141]
[1731268619538,0.54249305,79647.0,79645.0,0.00010141]
[1731268620048,0.3608,79647.0,79645.0,0.00010141]
[1731268620343,0.3608,79647.0,79646.0,0.062724]
[1731268621236,0.36152,79655.0,79645.0,0.00010141]
[1731268621440,0.3608,79664.0,79657.0,0.062715]
[1731268621748,0.3608,79671.0,79661.0,0.062712]
[1731268622249,0.3608,79671.0,79664.0,0.062709]
[1731268622438,0.3608,79671.0,79653.0,0.19584]
[1731268622639,0.54249305,79664.0,79648.0,0.0058]
[1731268622953,0.18169305,79673.0,79637.0,0.1087]
[1731268622954,0.3608,79649.0,79643.0,0.0058]
[1731268623245,0.54249305,79646.0,79634.0,0.0058]
[1731268623449,0.54249305,79646.0,79636.0,0.3608]
[1731268623450,0.3608,79646.0,79636.0,0.3608]
[1731268623642,0.3608,79646.0,79644.0,0.062725]
[1731268623843,0.3608,79656.0,79644.0,0.062725]
[1731268624047,0.18169305,79654.0,79644.0,0.062725]
[1731268624347,0.3608,79656.0,79647.0,0.062723]
[1731268624554,0.3608,79656.0,79654.0,0.062718]
[1731268624750,0.3608,79672.0,79664.0,0.062709]
[1731268625537,0.3608,79672.0,79659.0,0.19008]
[1731268625741,0.3608,79672.0,79659.0,0.252794]
[1731268626149,0.3608,79672.0,79659.0,0.19008]
[1731268626347,0.3608,79672.0,79660.0,0.062713]
[1731268626747,0.3608,79670.0,79660.0,0.062713]
[1731268627845,0.3608,79670.0,79663.0,0.06271]
[1731268628045,0.3608,79670.0,79663.0,0.05021]
[1731268628254,0.3608,79670.0,79659.0,0.19008]
[1731268628551,0.3608,79670.0,79667.0,0.062707]
[1731268628756,0.3608,79687.0,79668.0,0.37656]
[1731268628964,0.3608,79698.0,79687.0,0.062692]
[1731268629147,0.3608,79698.0,79685.0,0.19008]
[1731268629455,0.3608,79690.0,79685.0,0.19008]
[1731268629974,9.499e-05,79687.0,79685.0,0.19008]
[1731268631879,9.499e-05,79687.0,79685.0,0.252773]
[1731268632570,9.499e-05,79687.0,79685.0,0.629253]
[1731268633074,9.499e-05,79687.0,79685.0,0.252773]
[1731268634263,0.062694,79684.0,79674.0,0.0014]
[1731268634564,0.062694,79684.0,79667.0,0.0058]
[1731268634565,0.062701,79676.0,79667.0,0.0058]
[1731268634772,0.062701,79676.0,79658.0,0.062714]
[1731268634773,0.60519905,79669.0,79658.0,0.0058]
[1731268635073,0.60519905,79669.0,79654.0,0.03091348]
[1731268635074,0.3608,79661.0,79654.0,0.03091348]
[1731268635375,0.062716,79656.0,79654.0,0.02511348]
[1731268635572,0.062716,79656.0,79647.0,0.0018829]
[1731268635768,0.36144,79657.0,79647.0,0.0018829]
[1731268635769,0.3608,79648.0,79647.0,0.0018829]
[1731268638195,0.00011702,79660.0,79647.0,0.0018829]
[1731268639586,0.00011702,79660.0,79649.0,0.062721]
[1731268640581,0.3608,79656.0,79649.0,0.062721]
[1731268643469,0.3608,79656.0,79650.0,0.3608]
[1731268644180,0.00011702,79660.0,79658.0,0.062714]
[1731268644868,0.00011702,79660.0,79651.0,0.35866]
[1731268645179,0.00011702,79660.0,79651.0,0.29594]
[1731268645376,0.00011702,79660.0,79656.0,0.062715]
[1731268645582,0.00011702,79660.0,79658.0,0.062714]
[1731268646289,0.3608,79678.0,79659.0,0.56497161]
[1731268646583,0.36144,79682.0,79679.0,0.062698]
[1731268646781,0.36144,79682.0,79668.0,0.3608]
[1731268646782,0.3608,79682.0,79681.0,0.062696]
[1731268647082,0.36144,79696.0,79677.0,0.062699]
[1731268647270,0.24448098,79695.0,79676.0,0.18964]
[1731268647469,0.24448098,79695.0,79679.0,0.062697]
[1731268647679,0.01460924,79694.0,79679.0,0.062697]
[1731268647882,0.01460924,79693.0,79679.0,0.062697]
[1731268648072,0.24448098,79695.0,79679.0,0.062697]
[1731268648474,0.3608,79684.0,79679.0,0.062697]
[1731268649584,0.3608,79684.0,79681.0,0.062696]
[1731268649884,0.3608,79684.0,79676.0,0.18964]
[1731268650076,0.3608,79684.0,79682.0,0.062695]
[1731268651283,0.24448098,79695.0,79682.0,0.062695]
[1731268651878,0.06278793,79695.0,79682.0,0.062695]
[1731268652085,0.06278793,79695.0,79683.0,0.062695]
[1731268652086,0.00010293,79695.0,79683.0,0.062695]
[1731268652275,0.00010293,79695.0,79682.0,0.3608]
[1731268652783,0.00010293,79695.0,79683.0,0.3608]
[1731268652973,0.00010293,79695.0,79686.0,0.062692]
[1731268653678,0.00010293,79695.0,79683.0,0.3608]
[1731268654277,0.00010293,79695.0,79693.0,0.062686]
[1731268654480,0.00010293,79695.0,79694.0,0.1896]
[1731268655576,0.00010293,79695.0,79683.0,0.3608]
[1731268655885,0.36090293,79695.0,79676.0,0.0058]
[1731268656078,0.36090293,79695.0,79681.0,0.062696]
[1731268657376,0.36090293,79695.0,79683.0,0.062694]
[1731268657581,0.36090293,79695.0,79676.0,0.54393305]
[1731268657582,0.36090293,79695.0,79685.0,0.062693]
[1731268658081,0.36090293,79695.0,79677.0,0.062699]
[1731268658382,0.36090293,79695.0,79676.0,0.3666]
[1731268658383,0.18169305,79679.0,79676.0,0.0058]
[1731268658687,0.3608,79677.0,79671.0,0.02914828]
[1731268658883,0.3608,79684.0,79664.0,0.0058]
[1731268659077,0.36148,79684.0,79662.0,0.062711]
[1731268659274,0.3608,79669.0,79657.0,0.0058]
[1731268659479,0.12123012,79668.0,79652.0,0.03723382]
[1731268659685,0.3608,79662.0,79652.0,0.03723382]
[1731268659885,0.01623012,79661.0,79652.0,0.03723382]
[1731268662186,0.01623012,79661.0,79651.0,0.02902438]
[1731268663478,0.3608,79662.0,79651.0,0.02902438]
[1731268664381,0.01642209,79661.0,79651.0,0.02902438]
[1731268664582,0.01642209,79660.0,79645.0,0.00010141]
[1731268664788,0.01642209,79659.0,79645.0,0.00010141]
[1731268664989,0.01642209,79658.0,79645.0,0.00010141]
[1731268665290,0.3608,79647.0,79645.0,0.00010141]
[1731268665677,0.3608,79647.0,79643.0,0.02874944]
[1731268665879,0.3608,79647.0,79630.0,0.252376]
[1731268666078,0.01580103,79646.0,79632.0,0.062735]
[1731268666382,0.36152,79647.0,79632.0,0.062735]
[1731268666579,0.3608,79647.0,79632.0,0.062735]
[1731268666777,0.3608,79647.0,79632.0,0.06284737]
[1731268666988,0.3608,79647.0,79635.0,0.18169305]
[1731268667284,0.3608,79647.0,79634.0,0.062733]
[1731268667975,0.3608,79647.0,79633.0,0.3608]
[1731268668184,0.3608,79647.0,79636.0,0.062731]
[1731268668778,0.3608,79647.0,79635.0,0.18169305]
[1731268669082,0.36155071,79657.0,79644.0,0.062725]
[1731268669286,0.01505471,79656.0,79644.0,0.062725]
[1731268669476,0.01505471,79655.0,79646.0,0.062724]
[1731268669675,0.00011071,79657.0,79651.0,0.18169305]
[1731268669878,0.00011071,79657.0,79654.0,0.062718]
[1731268670082,0.00011071,79657.0,79652.0,0.1031]
[1731268670281,0.00011071,79657.0,79655.0,0.062716]
[1731268670476,0.01432414,79656.0,79655.0,0.062716]
[1731268670673,0.00011071,79657.0,79655.0,0.062716]
[1731268671278,0.00011071,79657.0,79652.0,0.1031]
[1731268671479,0.00011071,79657.0,79653.0,0.18964]
[1731268672098,0.02510229,79678.0,79653.0,0.18964]
[1731268672099,0.3608,79680.0,79656.0,0.54249305]
[1731268672285,0.3608,79705.0,79679.0,0.90329305]
[1731268672584,0.3608,79705.0,79689.0,0.3608]
[1731268672788,0.3608,79705.0,79690.0,0.19836]
[1731268672983,0.2136,79712.0,79690.0,0.19836]
[1731268673181,0.3608,79705.0,79690.0,0.38626894]
[1731268673379,0.00015497,79704.0,79690.0,0.19836]
[1731268673679,0.3608,79698.0,79690.0,0.19836]
[1731268673883,0.3608,79698.0,79689.0,0.00011327]
[1731268674388,0.00721,79697.0,79689.0,0.00011327]
[1731268674581,0.00721,79697.0,79690.0,0.18169305]
[1731268674779,0.00721,79697.0,79690.0,0.54249305]
[1731268676591,0.36801,79697.0,79689.0,0.00011327]
[1731268676796,0.00721,79697.0,79689.0,0.00011327]
[1731268678493,0.01551796,79696.0,79689.0,0.00011327]
[1731268678694,0.3608,79691.0,79689.0,0.00011327]
[1731268679290,0.01551722,79690.0,79689.0,0.00011327]
[1731268680089,0.01551722,79690.0,79684.0,0.02889855]
[1731268680090,0.39133405,79690.0,79680.0,0.0058]
[1731268680295,0.36144,79691.0,79659.0,0.3608]
[1731268680296,0.3608,79681.0,79668.0,0.0058]
[1731268680597,0.3608,79681.0,79659.0,0.3608]
[1731268680598,0.3608,79680.0,79664.0,0.0058]
[1731268680797,0.3608,79673.0,79659.0,0.3666]
[1731268680998,0.3608,79664.0,79655.0,0.18749305]
[1731268681297,0.3608,79664.0,79662.0,0.02996721]
[1731268681809,0.36096035,79664.0,79651.0,0.00012948]
[1731268682018,0.36096035,79664.0,79654.0,0.02876268]
[1731268682191,0.00064,79673.0,79671.0,0.062704]
[1731268682503,0.3608,79689.0,79672.0,0.18924503]
[1731268682504,0.3608,79680.0,79672.0,0.18924503]
[1731268682896,0.3608,79680.0,79663.0,0.39829458]
[1731268683198,0.00010079,79679.0,79663.0,0.39249458]
[1731268683414,0.00010079,79679.0,79663.0,0.57418763]
[1731268683995,0.00010079,79679.0,79664.0,0.06271]
[1731268684197,0.00010079,79679.0,79663.0,0.57418763]
[1731268684198,0.00010079,79679.0,79666.0,0.062708]
[1731268684596,0.00010079,79679.0,79663.0,0.39249458]
[1731268684802,0.00010079,79679.0,79663.0,0.36268232]
[1731268685196,0.00010079,79679.0,79663.0,0.42539332]
[1731268685699,0.00010079,79679.0,79675.0,0.18169305]
[1731268685901,0.00010079,79679.0,79675.0,0.24439405]
[1731268686106,0.00010079,79679.0,79677.0,0.062699]
[1731268686600,0.00010079,79679.0,79678.0,0.18843173]
[1731268686899,0.3608,79699.0,79688.0,0.06269]
[1731268687108,0.00064,79699.0,79692.0,0.062687]
[1731268687298,0.3608,79705.0,79692.0,0.062687]
[1731268687697,0.18169305,79701.0,79681.0,0.0058]